[Event "FIDE WSCC 65 2022"]
[Site "Assisi"]
[Date "2022.11.19"]
[Round "5.7"]
[White "Knaak, Rainer"]
[Black "Pomes Marcet, Joan"]
[Result "1/2-1/2"]
[ECO "D16"]
[WhiteElo "2457"]
[BlackElo "2197"]
[Annotator "TA"]
[PlyCount "112"]
[EventDate "2022.11.14"]
[EventType "swiss"]
[EventCountry "ITA"]
[SourceTitle "playchess.com"]
[Source "ChessBase"]
[SourceQuality "1"]
[TimeControl "40/5400+30:1800+30"]

{[%evp 15,112,36,55,21,20,16,23,13,29,16,18,17,18,9,0,0,5,5,8,5,14,6,14,9,29,19,42,23,30,8,38,5,37,0,0,-80,-84,-78,-39,-44,-47,-60,-29,-21,0,0,2,0,75,0,0,0,0,0,0,0,0,0,0,0,0,0,0,0,0,-41,0,-37,-28,-37,-37,-37,-37,-37,-8,-8,-8,-8,-8,-8,-8,-8,-8,-8,-8,-8,-8,-8,-8,-8,-8,-8,-8,-8,-8,-8,-8,-8,-8]} 1. d4 {[%emt 0:00:04] Huebner,R} d5 {[%emt 0:00:06]} 2. c4 {[%emt 0:00:09]} c6 {[%emt 0:00:05]} 3. Nf3 {[%emt 0:00:22]} Nf6 {[%emt 0:00:09]} 4. Nc3 {[%emt 0:00:21]} dxc4 {[%emt 0:00:26]} 5. a4 {[%emt 0:00:10]} Na6 {[%emt 0:00:46]} 6. e4 {[%emt 0:00:36]} Bg4 {[%emt 0:00:40]} 7. Bxc4 {[%emt 0:01:20]} e6 {[%emt 0:00:32]} 8. Be3 {[%emt 0:01:12]} Nb4 {[%emt 0:01:22]} 9. Qb3 {[%emt 0:13:59] And now Ne5 would win. D16: Slav Defence: 5 a4: Lines with 5...Bg4 and 5...Na6.} Bxf3 {[%emt 0:03:44]} 10. gxf3 {[%emt 0:00:17]} Be7 {[%emt 0:12:42]} 11. a5 {[%emt 0:14:22] White has an edge.} b5 {[%emt 0:01:55] Against Ra4} 12. axb6 {[%emt 0:00:40]} axb6 {[%emt 0:00:17]} 13. O-O {[%emt 0:00:36]} O-O {[%emt 0:04:15]} 14. Rxa8 {[%emt 0:06:28]} Qxa8 {[%emt 0:00:07] [#]} 15. Bg5 $146 {[%emt 0:00:27]} ({Predecessor:} 15. Rd1 Rd8 16. Bf1 Qa5 17. Ne2 c5 18. dxc5 Rxd1 19. Qxd1 bxc5 20. Nc3 h6 21. f4 {0-1 (49) Atalik,S (2555)-Nikolic,P (2655) Pula 1997 CBM 057 Extra [Huebner,R]}) 15... b5 {[%emt 0:07:19]} 16. Be2 {[%emt 0:02:31]} Qa7 {[%emt 0:06:36]} 17. Be3 {[%emt 0:01:16][%cal Od4d5]} Qb7 {[%emt 0:04:00]} 18. Kh1 {[%emt 0:01:42]} Kh8 {[%emt 0:06:40]} 19. Rg1 {[%emt 0:00:14]} Na6 {[%emt 0:02:20]} 20. Qd1 {[%emt 0:01:25]} Nb8 {[%emt 0:05:12]} 21. Qf1 {[%emt 0:01:04]} Nbd7 {[%emt 0:01:11]} 22. Qg2 {[%emt 0:00:29][%csl Gg1][%cal Rg2g7]} Rg8 {[%emt 0:00:34]} 23. e5 {[%emt 0:05:22]} Nd5 {[%emt 0:01:40]} 24. Bh6 {[%emt 0:00:21][%cal Rh6g7]} g6 {[%emt 0:11:09]} 25. Ne4 {[%emt 0:00:43]} (25. Nxd5 $11 {keeps the balance.} cxd5 26. Qf1) 25... Qa7 $17 {[%emt 0:04:08]} 26. Be3 {[%emt 0:23:37]} c5 {[%emt 0:07:58]} (26... Qa2 $5 {[%cal Ra2b2]} 27. Bc1 Qa4 $17) 27. dxc5 {[%emt 0:02:07]} Nxe3 {[%emt 0:00:23]} (27... Nxc5 {is more complex.} 28. Nd6 Kg7 29. Rd1 Nxe3 30. fxe3 Nb3) 28. fxe3 {[%emt 0:00:04]} Nxc5 {[%emt 0:00:24]} 29. Nd6 {[%emt 0:07:20]} Bxd6 {[%emt 0:01:12]} 30. exd6 {[%emt 0:00:07]} Qb6 {[%emt 0:00:49]} 31. Qg5 {[%emt 0:06:43]} Rd8 {[%emt 0:01:32] [#]} (31... Kg7 $11) 32. Rd1 {[%emt 0:01:17] White is more active.} (32. Rc1 $1 $16 Nd7 {[#]} 33. Rc6 $1 (33. Bxb5 $2 f6 $19)) 32... b4 $11 {[%emt 0:06:34]} 33. Qe7 {[%emt 0:05:09]} Kg7 {[%emt 0:01:25]} 34. d7 {[%emt 0:00:10]} Nb7 {[%emt 0:00:45]} 35. Rd4 {[%emt 0:01:26]} b3 {[%emt 0:03:23]} 36. Kg2 {[%emt 0:01:58][%cal Bh1g2,Bg2f2,Bf2e2,Be2d2,Bd2c3,Bc3c4,Bc4b3][%mdl 32]} Qc5 {[%emt 0:00:55]} 37. Qxc5 {[%emt 0:00:34]} Nxc5 {[%emt 0:00:06][%mdl 4096] Endgame KRB-KRN} 38. Bb5 {[%emt 0:00:35]} Kf6 {[%emt 0:00:09]} 39. Kf2 {[%emt 0:00:39]} Ke7 {[%emt 0:00:40][%cal Rc5d7]} 40. Ke2 {[%emt 0:01:15]} g5 {[%emt 0:03:45]} 41. Kd2 {[%emt 0:05:55]} h5 {[%emt 0:05:31]} 42. Kc3 {[%emt 0:04:41]} f5 {[%emt 0:01:02]} 43. Kc4 {[%emt 0:01:21]} Nxd7 {[%emt 0:02:33] Strongly threatening ...Ne5+.} 44. Kxb3 {[%emt 0:00:36]} Ne5 {[%emt 0:00:41]} 45. Rxd8 {[%emt 0:02:06] The position is equal.} Kxd8 {[%emt 0:00:06] KB-KN} 46. Be2 {[%emt 0:00:12]} g4 {[%emt 0:02:44]} 47. fxg4 {[%emt 0:01:06]} fxg4 {[%emt 0:01:52] aiming for ...h4.} 48. Kc3 {[%emt 0:00:37]} h4 {[%emt 0:06:33][%cal Bh5h4,Bh4g3][%mdl 32]} 49. Kd4 $1 {[%emt 0:00:18] [#]} g3 $1 {[%emt 0:05:34]} 50. hxg3 {[%emt 0:00:05] [#]} ({Wrong is} 50. Kxe5 $2 g2 51. h3 g1=Q $19) 50... hxg3 $1 {[%emt 0:00:09]} 51. Bf1 {[%emt 0:00:07]} ({Avoid the trap} 51. Kxe5 $2 g2 52. Bc4 g1=Q $19) 51... Nf3+ {[%emt 0:00:22]} 52. Kc5 {[%emt 0:00:17]} Kc7 {[%emt 0:01:46]} 53. b4 {[%emt 0:00:14][%cal Bb2b4,Bb4b5,Bb5b6][%mdl 32]} Ne1 {[%emt 0:01:13]} 54. b5 $1 {[%emt 0:00:19]} g2 {[%emt 0:00:11]} 55. Bxg2 {[%emt 0:00:05]} Nxg2 {[%emt 0:00:06]} 56. b6+ {[%emt 0:00:03]} Kb7 {[%emt 0:10:12] Weighted Error Value: White=0.11 (very precise) /Black=0.10 (very precise)} 1/2-1/2

[Event "FIDE WSCC 65 2022"]
[Site "Assisi"]
[Date "2022.11.19"]
[Round "5.8"]
[White "Luciani, Carlo"]
[Black "Kristiansen, Jens"]
[Result "0-1"]
[ECO "B81"]
[WhiteElo "2187"]
[BlackElo "2353"]
[Annotator "TA"]
[PlyCount "122"]
[EventDate "2022.11.14"]
[EventType "swiss"]
[EventCountry "ITA"]
[SourceTitle "playchess.com"]
[Source "ChessBase"]
[SourceQuality "1"]
[TimeControl "40/5400+30:1800+30"]

{[%evp 15,122,9,26,0,8,0,20,-14,-7,-11,-22,-9,52,46,41,-54,-54,-43,-26,-74,-14,-102,-102,-134,-89,-121,-60,-135,-70,-78,-91,-79,0,-85,-101,-120,-83,-131,-126,-133,-158,-227,-231,-207,-208,-212,-198,-215,-198,-200,-200,-200,-165,-236,-219,-241,-231,-219,-235,-213,-224,-207,-216,-223,-228,-237,-235,-255,-258,-247,-250,-515,-485,-466,-400,-423,-420,-370,-303,-305,-270,-421,-414,-557,-493,-488,-486,-486,-486,-441,-421,-672,-654,-698,-666,-835,-833,-691,-633,-668,-714,-1809,-1741,-1160,-1118,-919,-722,-29983,-29984]} 1. e4 {[%emt 0:00:02]} c5 {[%emt 0:03:08]} 2. Nf3 {[%emt 0:00:09]} d6 {[%emt 0:00:12]} 3. d4 {[%emt 0:00:07]} cxd4 {[%emt 0:00:05]} 4. Nxd4 {[%emt 0:00:08]} Nf6 {[%emt 0:00:05]} 5. Nc3 {[%emt 0:00:11]} e6 {[%emt 0:00:07]} 6. g4 {[%emt 0:00:25]} h6 {[%emt 0:00:16]} 7. Bg2 {[%emt 0:00:09]} Nc6 {[%emt 0:00:38]} 8. h3 {[%emt 0:00:26]} Bd7 {[%emt 0:01:00]} 9. Nde2 {[%emt 0:01:06] B81: Sicilian Scheveningen: Keres Attack.} Be7 {[%emt 0:01:42]} 10. O-O {[%emt 0:00:46]} a6 {[%emt 0:01:23]} 11. a4 {[%emt 0:05:11] The position is equal.} g5 {[%emt 0:05:43]} 12. f4 {[%emt 1:27:50] [#]} Qb6+ $146 {[%emt 0:04:57]} ({Predecessor:} 12... gxf4 13. Bxf4 Ne5 14. Kh1 Qc7 15. Nc1 Nh7 16. Nd3 Bg5 17. Bg3 Bc6 18. Qe2 Rd8 {1-0 (34) Suleymanli,A (2525)-Muradli,M (2537) Chess.com INT 2022}) 13. Rf2 {[%emt 0:00:00]} O-O-O {[%emt 0:02:41]} (13... Rg8 $11) 14. fxg5 {[%emt 0:00:00]} hxg5 {[%emt 0:00:14][%cal Od6d5]} 15. Kf1 {[%emt 0:00:00]} (15. a5 $1 $14 Qc5 16. b4 Qxb4 17. Be3) 15... Be8 {[%emt 0:08:33]} 16. a5 {[%emt 0:00:00]} Nxa5 {[%emt 0:01:04]} 17. Qd3 {[%emt 0:00:00] Inhibits Nc4.} (17. Qd4 $11 Qxd4 18. Nxd4) 17... Qc7 {[%emt 0:02:57]} (17... Rg8 $17) 18. Qg3 {[%emt 0:00:00]} (18. b4 $11 {remains equal.} Nc6 19. Bxg5 Nxb4 20. Qd2) 18... Nd7 $17 {[%emt 0:02:05]} 19. Be3 {[%emt 0:00:00]} Nc4 {[%emt 0:01:21]} 20. Bd4 {[%emt 0:00:00]} Nde5 {[%emt 0:03:19]} (20... Nce5 $17 21. Kg1 f6) 21. Na4 {[%emt 0:00:00]} (21. b3 $15 Nb6 22. Kg1) 21... b5 {[%emt 0:08:56] Black is more active.} (21... Rh7 $17 {Strongly threatening ...Bxa4.} 22. Qc3 b5 23. Nb6+ Nxb6 24. Bxb6 Qxc3 25. Nxc3 Rd7) 22. Nac3 $15 {[%emt 0:00:00] [#]} Kb7 {[%emt 0:00:22]} (22... Nxb2 23. Rxa6 Bc6 24. Ra7 $14) 23. b3 {[%emt 0:00:00]} Na5 {[%emt 0:00:26]} (23... Nb6 $17) 24. Na2 {[%emt 0:00:00]} (24. Nd5 $1 $11 exd5 25. exd5) 24... Nac6 $36 {[%emt 0:00:56][%mdl 2048] Black is in control. White is now going downhill.} 25. Bb2 {[%emt 0:00:00]} Qb6 {[%emt 0:01:52]} 26. Rd1 {[%emt 0:00:00]} ({White has to play} 26. Bc1) 26... Rh6 {[%emt 0:02:59]} 27. Nd4 {[%emt 0:00:00]} Rf6 {[%emt 0:00:41]} 28. Rdd2 {[%emt 0:00:00]} (28. Nf5 $17 {was called for.} exf5 29. exf5) 28... Qa5 $19 {[%emt 0:02:38][%csl LRa2,LRd2]} 29. Nc3 {[%emt 0:00:00]} Nxd4 {[%emt 0:00:24] Chess con chili.} 30. Rxd4 {[%emt 0:00:00]} Qb6 {[%emt 0:00:18]} 31. Nd1 {[%emt 0:00:00]} Rc8 {[%emt 0:01:29]} 32. Ne3 {[%emt 0:00:00]} Rxf2+ {[%emt 0:02:04]} 33. Qxf2 {[%emt 0:00:00]} Qc5 {[%emt 0:00:40]} 34. Kg1 {[%emt 0:00:00]} (34. Rd1 $142) 34... Bd8 {[%emt 0:01:21][%cal Be7d8,Bd8b6,Bb6c5,Bc5e3][%mdl 32]} 35. Rd1 {[%emt 0:00:00]} Bb6 {[%emt 0:01:14]} 36. Bd4 {[%emt 0:00:00]} Qc7 {[%emt 0:00:11]} 37. c3 {[%emt 0:00:00]} a5 {[%emt 0:06:45]} 38. Rd2 {[%emt 0:00:00]} Bc5 {[%emt 0:01:04]} 39. Kh1 {[%emt 0:00:00]} Qb6 {[%emt 0:01:04]} 40. Qf6 {[%emt 0:03:56]} b4 {[%emt 0:04:29] And now ...bxc3 would win.} 41. Bxe5 {[%emt 0:38:49] [#]} bxc3 $1 {[%emt 0:31:06]} ({Inferior is} 41... dxe5 42. Nc4 Qc7 43. cxb4 Bxb4 44. Rb2 $17) 42. Bxc3 {[%emt 0:00:00]} Bxe3 {[%emt 0:00:00]} 43. Bd4 $2 {[%emt 0:00:00]} (43. Re2 {was worth a try.}) 43... Rc1+ {[%emt 0:00:00]} ({Don't take} 43... Bxd2 44. Bxb6 Rc1+ 45. Bg1 $18) ({Weaker is} 43... Bxd4 44. Rxd4 Rc1+ 45. Kh2 $17) 44. Kh2 {[%emt 0:00:00]} Bg1+ {[%emt 0:00:00]} 45. Kg3 {[%emt 0:00:00]} Bxd4 {[%emt 0:00:00]} 46. Rxd4 {[%emt 0:00:00]} Qxb3+ {[%emt 0:00:00]} 47. Kh2 {[%emt 0:00:00]} Qb6 {[%emt 0:00:00]} 48. Qe7+ {[%emt 0:00:00]} (48. Qxg5 $142 Qxd4 49. Qxc1) 48... Rc7 {[%emt 0:00:00]} 49. Qxd6 {[%emt 0:00:00]} Qxd6+ {[%emt 0:00:00]} 50. Rxd6 {[%emt 0:00:00][%mdl 4096] Endgame KRB-KRB} Rd7 {[%emt 0:00:00]} 51. e5+ {[%emt 0:00:00]} Ka7 {[%emt 0:00:00]} 52. Rc6 {[%emt 0:00:00]} Rd2 {[%emt 0:00:00]} 53. Rc7+ {[%emt 0:00:00]} (53. Rc3 $142) 53... Kb6 {[%emt 0:00:00]} 54. Rc3 {[%emt 0:02:17]} Bb5 {[%emt 0:00:00] ...Bf1 is the strong threat.} 55. Kg1 {[%emt 0:00:57]} a4 {[%emt 0:00:00]} 56. Be4 {[%emt 0:01:03]} Re2 {[%emt 0:00:00]} 57. Bh7 {[%emt 0:00:56]} Rxe5 {[%emt 0:00:00]} 58. Rf3 {[%emt 0:00:04]} Re1+ {[%emt 0:00:00]} 59. Kh2 {[%emt 0:00:03]} Re2+ {[%emt 0:00:00]} 60. Kg1 {[%emt 0:00:29]} Bc6 {[%emt 0:00:00]} 61. Rxf7 {[%emt 0:00:14]} a3 {[%emt 0:00:00] Weighted Error Value: White=0.59/Black=0.20 (precise)} 0-1

[Event "FIDE WSCC 65 2022"]
[Site "Assisi"]
[Date "2022.11.19"]
[Round "5.9"]
[White "Legky, Nikolay A"]
[Black "Gruzmann, Boris"]
[Result "1-0"]
[ECO "A45"]
[WhiteElo "2350"]
[BlackElo "2156"]
[Annotator "TA"]
[PlyCount "93"]
[EventDate "2022.11.14"]
[EventType "swiss"]
[EventCountry "ITA"]
[SourceTitle "playchess.com"]
[Source "ChessBase"]
[SourceQuality "1"]
[TimeControl "40/5400+30:1800+30"]

{[%evp 16,93,18,11,47,20,16,24,36,0,16,0,0,-5,0,7,26,16,33,39,51,29,64,68,71,0,0,0,39,34,45,12,113,118,134,77,62,76,147,150,141,165,168,177,165,132,125,108,245,227,259,228,203,172,168,123,155,158,173,167,206,197,225,218,283,217,312,248,255,241,630,312,718,757,732,699,1033,933,29984,29985]} 1. d4 {[%emt 0:00:04]} Nf6 {[%emt 0:00:14]} 2. Bg5 {[%emt 0:00:05]} Ne4 {[%emt 0:00:18]} 3. Bf4 {[%emt 0:00:05]} c5 {[%emt 0:00:25]} 4. f3 {[%emt 0:00:07]} Qa5+ {[%emt 0:00:17]} 5. c3 {[%emt 0:00:04]} Nf6 {[%emt 0:00:20]} 6. d5 {[%emt 0:00:05]} Qb6 {[%emt 0:00:49]} 7. Bc1 {[%emt 0:00:49]} e6 {[%emt 0:00:37]} 8. e4 {[%emt 0:00:18]} exd5 {[%emt 0:00:58]} 9. exd5 {[%emt 0:00:05]} d6 {[%emt 0:04:16] A45: Trompowsky Attack.} 10. Na3 {[%emt 0:11:54]} Be7 {[%emt 0:00:17]} 11. Nc4 {[%emt 0:00:05]} Qc7 {[%emt 0:00:27] White has an edge.} 12. a4 {[%emt 0:00:06]} O-O {[%emt 0:01:54]} 13. Ne2 {[%emt 0:06:59]} Re8 {[%emt 0:01:08] [#]} 14. Nf4 $146 {[%emt 0:06:05]} ({Predecessor:} 14. Ng3 h5 15. Be2 h4 16. Nf1 b6 17. g4 hxg3 18. hxg3 Bb7 19. Nfe3 Bf8 20. Kf2 {0-1 (61) Cherniaev,A (2483)-Rambaldi,F (2513) Biel 2015}) 14... b6 {[%emt 0:13:11]} 15. Be2 {[%emt 0:02:40]} Bb7 {[%emt 0:00:57]} 16. O-O {[%emt 0:10:14]} Nbd7 {[%emt 0:06:56]} 17. Ne3 {[%emt 0:04:59]} Bf8 {[%emt 0:01:48][%cal Oc5c4]} 18. g4 {[%emt 0:07:36] Threatens to win with g5.} Re5 {[%emt 0:04:41]} 19. c4 $1 {[%emt 0:01:31]} g6 {[%emt 0:00:41]} 20. Nd3 {[%emt 0:07:21]} ({Only move:} 20. h4 $1 $16) 20... Re7 $1 $11 {[%emt 0:01:44]} 21. g5 {[%emt 0:00:03]} Ne8 {[%emt 0:01:18]} (21... Rae8 $5 {[%cal Rf6d5]}) 22. f4 {[%emt 0:12:01][%cal Bf3f4,Bf4f5][%mdl 32]} f5 {[%emt 0:03:44]} 23. gxf6 {[%emt 0:00:24]} Ndxf6 {[%emt 0:00:25] [#]} (23... Nexf6 $11 24. f5 g5) 24. f5 $1 $16 {[%emt 0:00:10] And now fxg6 would win.} g5 {[%emt 0:10:05]} 25. Ng2 {[%emt 0:04:27]} (25. Nf2 $142) 25... h6 {[%emt 0:08:54]} 26. Nf2 {[%emt 0:04:39]} Re5 {[%emt 0:02:58]} (26... Bg7 $142) 27. Bd3 {[%emt 0:00:38]} Bc8 {[%emt 0:01:21]} 28. b3 {[%emt 0:03:38]} Bg7 {[%emt 0:00:43]} 29. Bb2 {[%emt 0:00:03]} Re7 {[%emt 0:00:28]} 30. Qc2 {[%emt 0:00:22]} a6 {[%emt 0:05:51]} 31. Rae1 {[%emt 0:00:05]} Ra7 {[%emt 0:01:09] [#]} (31... Rxe1 $16 32. Rxe1 Qf7) 32. Re6 $1 $18 {[%emt 0:02:20][%mdl 512]} Qd8 {[%emt 0:05:30]} (32... Rf7 33. Qe2) 33. Ne3 {[%emt 0:03:15]} Rf7 {[%emt 0:04:00]} 34. Re1 {[%emt 0:04:30]} Rf8 {[%emt 0:01:34]} 35. Bc3 {[%emt 0:03:14]} Raf7 {[%emt 0:02:54]} 36. Qe2 {[%emt 0:00:01] White is much more active.} Rb7 {[%emt 0:05:14]} 37. Nh1 {[%emt 0:00:46]} Rbf7 {[%emt 0:03:09]} 38. Ng3 {[%emt 0:00:04]} Rb7 {[%emt 0:01:08]} 39. Ba1 {[%emt 0:00:13]} Rbf7 {[%emt 0:00:38]} 40. Kh1 {[%emt 0:04:47]} Bd7 {[%emt 0:02:33]} (40... Ra7 $142 41. Nd1 b5) 41. Nh5 {[%emt 0:04:37]} Nxh5 {[%emt 0:07:44]} 42. Qxh5 {[%emt 0:00:13]} Bxa1 $2 {[%emt 0:00:39]} (42... Nf6 43. Qe2 Bc8 44. Bxf6 Rxf6) 43. Rxa1 {[%emt 0:00:02]} (43. Ng4 $142 Rf6 44. Nxf6+ Bxf6 45. Qg6+ (45. Qxh6 Rf7 $14) 45... Ng7 46. Rxd6) 43... Rf6 {[%emt 0:04:56]} (43... Nf6 44. Qxh6 Rh7 45. Qxg5+ Rg7) 44. Ng4 $1 {[%emt 0:01:34][%csl LRf6,LRh6]} Bxe6 {[%emt 0:04:44]} 45. fxe6 {[%emt 0:00:18]} Kg7 {[%emt 0:03:28]} 46. Rg1 {[%emt 0:03:05][%cal Og4h6] Nxh6! would kill now.} Rh8 {[%emt 0:10:20]} 47. Nxf6 {[%emt 0:01:22] Weighted Error Value: White=0.23 (precise) /Black=0.47} 1-0

[Event "FIDE WSCC 65 2022"]
[Site "Assisi"]
[Date "2022.11.19"]
[Round "5.10"]
[White "Bogdanov, Valentin"]
[Black "Hutchinson, Paul A"]
[Result "1-0"]
[ECO "B11"]
[WhiteElo "2323"]
[BlackElo "2148"]
[Annotator "TA"]
[PlyCount "117"]
[EventDate "2022.11.14"]
[EventType "swiss"]
[EventCountry "ITA"]
[SourceTitle "playchess.com"]
[Source "ChessBase"]
[SourceQuality "1"]
[TimeControl "40/5400+30:1800+30"]

{[%evp 11,117,12,6,3,3,0,32,6,0,-16,-10,-19,12,8,8,9,15,0,32,-35,7,7,6,-25,-10,-29,-36,-33,12,10,41,50,51,27,130,83,127,53,54,63,170,166,166,166,166,160,283,197,193,150,384,381,375,375,475,469,423,369,365,356,430,411,716,681,704,679,802,789,1130,1062,12825,12823,12827,12824,12829,12829,12831,12831,12824,2579,12834,12833,12836,12837,12837,12836,12837,12837,12841,12839,12841,12836,12850,27999,27999,27999,27999,27999,27999,27999,27999,27999,27999,27999,27999,27999,27999,27999]} 1. e4 {[%emt 0:00:03]} c6 {[%emt 0:00:05]} 2. Nc3 {[%emt 0:01:09]} d5 {[%emt 0:00:16]} 3. Nf3 {[%emt 0:00:20]} Bg4 {[%emt 0:04:11]} 4. h3 {[%emt 0:00:11]} Bxf3 {[%emt 0:00:11]} 5. Qxf3 {[%emt 0:00:03]} e6 {[%emt 0:00:12]} 6. d3 {[%emt 0:03:54]} Nd7 {[%emt 0:00:57]} 7. Qg3 {[%emt 0:02:49] 7.Be2 is setting a new trend. B11: Caro-Kann: Two Knights Variation.} Ne7 {[%emt 0:04:35]} 8. Be2 {[%emt 0:02:27] [#]} d4 $146 {[%emt 0:01:56]} ({Predecessor:} 8... g6 9. O-O Bg7 10. Kh1 O-O 11. f4 Kh8 12. Bf3 b5 13. a3 a5 14. Qe1 Rb8 {1-0 (69) McShane,L (2672)-Rodshtein,M (2674) Batumi 2018}) 9. Nd1 {[%emt 0:01:05] White is slightly better.} Ng6 {[%emt 0:00:40]} 10. O-O {[%emt 0:02:02]} e5 {[%emt 0:00:42]} 11. c3 {[%emt 0:07:24]} c5 {[%emt 0:03:09]} 12. f4 {[%emt 0:03:37]} exf4 {[%emt 0:01:10]} 13. Bxf4 {[%emt 0:00:07]} Nxf4 {[%emt 0:00:09]} 14. Qxf4 {[%emt 0:00:23][%csl Gf1][%cal Rf4f7] [#]} Qe7 {[%emt 0:01:38]} 15. Nf2 {[%emt 0:03:26]} ({White should try} 15. Rc1 $14) 15... Qe5 {[%emt 0:10:11]} 16. Qxe5+ {[%emt 0:04:19]} Nxe5 {[%emt 0:00:08]} 17. Ng4 {[%emt 0:01:37]} Nc6 {[%emt 0:00:36]} 18. Bd1 {[%emt 0:01:53]} h5 {[%emt 0:03:47]} 19. Nh2 {[%emt 0:01:17]} Be7 {[%emt 0:09:01]} 20. Ba4 {[%emt 0:01:34]} Rc8 {[%emt 0:01:04]} 21. cxd4 {[%emt 0:04:58]} cxd4 {[%emt 0:00:10]} 22. Rac1 {[%emt 0:00:43]} Rh6 {[%emt 0:01:09]} (22... O-O $11) 23. Nf3 {[%emt 0:07:24]} (23. Rf5 $142) 23... a6 {[%emt 0:18:59]} 24. a3 {[%emt 0:08:12] White is more active.} (24. Ne5 $16) 24... Kd8 $1 $14 {[%emt 0:02:01]} 25. Rc2 $36 {[%emt 0:03:24][%mdl 2048] White has some pressure.} Bd6 {[%emt 0:05:42]} (25... Rc7 $14) 26. Bxc6 $18 {[%emt 0:01:00]} Rxc6 {[%emt 0:00:10]} 27. Rxc6 {[%emt 0:00:08]} (27. Nxd4 Bc5 28. Rxc5 Rxc5 29. Rxf7 Rd6 $15) 27... bxc6 {[%emt 0:00:04][%mdl 4096] Endgame KRB-KRN} 28. Ng5 {[%emt 0:00:15]} ({Don't go for} 28. Nxd4 $2 Bc5 29. Rxf7 Bxd4+ 30. Kf1 Bxb2 $19) 28... Kc7 {[%emt 0:09:30]} (28... Rg6 $16) 29. Nxf7 {[%emt 0:03:05]} Rg6 {[%emt 0:00:14]} 30. Nxd6 {[%emt 0:00:17]} Rxd6 {[%emt 0:00:29] KR-KR. This move loses the game for Black.} (30... Kxd6 $16 31. Kh2 h4) 31. Rf7+ {[%emt 0:02:30]} Kb6 {[%emt 0:00:07]} 32. Rxg7 {[%emt 0:01:08]} c5 {[%emt 0:00:09][%cal Oc5c4]} 33. Rg5 {[%emt 0:01:53]} h4 {[%emt 0:00:16]} 34. Kf2 {[%emt 0:00:55]} Rc6 {[%emt 0:00:56]} 35. Ke2 {[%emt 0:01:55]} a5 {[%emt 0:01:22]} 36. e5 {[%emt 0:05:40]} Kb5 {[%emt 0:02:59]} (36... Kc7 $142 37. Kf3 c4 38. Rg7+ Kc8) 37. b3 {[%emt 0:00:56]} a4 {[%emt 0:00:24]} 38. bxa4+ {[%emt 0:00:09]} Kxa4 {[%emt 0:00:08]} 39. Kf3 {[%emt 0:00:22]} Kb3 {[%emt 0:00:49]} 40. Ke4 {[%emt 0:00:17]} c4 {[%emt 0:00:18]} 41. dxc4 {[%emt 0:30:53]} ({And not} 41. Kd5 {[#]} cxd3 $1 42. Kxc6 d2 $11) 41... Kc3 {[%emt 0:30:20]} 42. Rg8 {[%emt 0:03:39]} ({Weaker is} 42. Kd5 d3 $11) 42... d3 {[%emt 0:06:18]} 43. Rd8 {[%emt 0:00:22]} d2 {[%emt 0:00:06]} 44. Ke3 {[%emt 0:00:14]} Re6 {[%emt 0:00:13]} 45. Rd3+ {[%emt 0:00:14]} Kxc4 {[%emt 0:00:08]} 46. Rxd2 {[%emt 0:00:24]} Rxe5+ {[%emt 0:00:12]} 47. Kf4 {[%emt 0:00:13]} Re8 {[%emt 0:01:03]} 48. Kg5 {[%emt 0:01:07]} Re4 {[%emt 0:00:08]} 49. Rf2 {[%emt 0:00:24]} Kb3 {[%emt 0:00:43]} 50. Rf4 {[%emt 0:00:21]} Re2 {[%emt 0:00:08]} 51. Rg4 {[%emt 0:00:12]} Kxa3 {[%emt 0:00:07]} 52. Kxh4 {[%emt 0:00:10]} Re5 {[%emt 0:01:07] White mates.} 53. Rf4 {[%emt 0:00:19]} Kb3 {[%emt 0:00:07]} 54. g4 {[%emt 0:00:06][%cal Bg2g4,Bg4g5,Bg5g6][%mdl 32]} Kc3 {[%emt 0:00:06]} 55. g5 {[%emt 0:00:08]} Re8 {[%emt 0:00:30]} 56. g6 {[%emt 0:00:13]} Rg8 {[%emt 0:00:46]} 57. Kg5 {[%emt 0:00:11]} Kd3 {[%emt 0:16:24]} 58. h4 {[%emt 0:00:12][%cal Bh3h4,Bh4h5][%mdl 32]} Ke3 {[%emt 0:00:00]} 59. h5 {[%emt 0:00:14] Weighted Error Value: White=0.18 (very precise) /Black=0.41} 1-0